fUST/lending_fUST_20260529
["ID","MTS","AMOUNT","RATE_DAILY","PERIOD"]
[423296434,1780041397000,-300.0,7.999e-05,2]
[423296435,1780041397000,-700.0,8e-05,2]
[423296438,1780041425000,-300.0,7.999e-05,2]
[423296439,1780041425000,-700.0,8e-05,2]
[423296444,1780041466000,-225.03668968,7.898e-05,2]
[423296445,1780041466000,-774.96331032,8e-05,2]
[423296449,1780041491000,-300.0,7.999e-05,2]
[423296450,1780041491000,-700.0,8e-05,2]
[423296456,1780041545000,-700.0,8e-05,2]
[423296455,1780041545000,-300.0,7.999e-05,2]
[423296467,1780041606000,-300.0,7.999e-05,2]
[423296468,1780041606000,-700.0,8e-05,2]
[423296469,1780041607000,-1000.0,8e-05,2]
[423296470,1780041608000,407.0,0.00020267,120]
[423296471,1780041611000,-1000.0,8e-05,2]
[423296472,1780041622000,-625.51445371,7.774e-05,2]
[423296473,1780041622000,-374.48554629,7.814e-05,2]
[423296475,1780041626000,-248.55952961,7.854e-05,2]
[423296474,1780041626000,-751.44047039,7.814e-05,2]
[423296476,1780041627000,-1000.0,7.854e-05,2]
[423296478,1780041633000,-246.91327774,7.895e-05,2]
[423296477,1780041633000,-753.08672226,7.854e-05,2]
[423296479,1780041634000,-1000.0,7.895e-05,2]
[423296480,1780041635000,-1000.0,7.895e-05,2]
[423296481,1780041641000,-880.65899081,7.895e-05,2]
[423296482,1780041641000,-119.34100919,7.935e-05,2]
[423296484,1780041654000,-175.74138,7.786e-05,2]
[423296485,1780041655000,-824.25862,7.935e-05,2]
[423296487,1780041734000,-1000.0,7.935e-05,2]
[423296488,1780041735000,-1000.0,7.935e-05,2]
[423296489,1780041736000,-1000.0,7.935e-05,2]
[423296490,1780041743000,-560.10443752,7.935e-05,2]
[423296491,1780041743000,-468.89556248,7.975e-05,2]
[423296495,1780041850000,-1680.82109508,7.788e-05,2]
[423296496,1780041850000,-2385.38940766,7.855e-05,2]
[423296494,1780041850000,-747.03159781,7.722e-05,2]
[423296493,1780041850000,-186.75789945,7.656e-05,2]
[423296497,1780041851000,-602.73698359,7.855e-05,2]
[423296498,1780041851000,-300.0,7.92e-05,2]
[423296499,1780041851000,-4097.26301641,7.921e-05,2]
[423296501,1780041853000,-4428.31553008,7.975e-05,2]
[423296500,1780041853000,-571.68446992,7.921e-05,2]
[423296504,1780041854000,-3503.87911262,7.987e-05,2]
[423296502,1780041854000,-1232.8305538,7.975e-05,2]
[423296503,1780041854000,-263.29033358,7.987e-05,2]
[423296507,1780041855000,-1520.79273231,8e-05,2]
[423296506,1780041855000,-259.802,7.987e-05,2]
[423296505,1780041855000,-3219.40526769,7.987e-05,2]
[423296509,1780041856000,-1520.79273231,8e-05,2]
[423296508,1780041856000,-3479.20726769,8e-05,2]
[423296511,1780041857000,-1520.79273231,8e-05,2]
[423296510,1780041857000,-3479.20726769,8e-05,2]
[423296513,1780041858000,-1648.44852775,8.016e-05,2]
[423296512,1780041858000,-3351.55147225,8e-05,2]
[423296514,1780041859000,-5000.0,8.016e-05,2]
[423296515,1780041860000,-1358.13647974,8.016e-05,2]
[423296516,1780041860000,-3641.86352026,8.056e-05,2]
[423296518,1780041864000,-3449.38814428,8.056e-05,2]
[423296517,1780041864000,-1550.61185572,8e-05,2]
[423296519,1780041865000,-3042.08248556,8.056e-05,2]
[423296520,1780041871000,500.0,8.015e-05,2]
[423296596,1780042231000,-300.0,7.954e-05,2]
[423296594,1780042231000,-263.0,7.954e-05,2]
[423296600,1780042231000,-500.0,7.955e-05,2]
[423296598,1780042231000,-500.0,7.955e-05,2]
[423296592,1780042231000,-1041.37682138,7.72e-05,2]
[423296590,1780042231000,-335.81776273,7.72e-05,2]
[423296586,1780042231000,-152.46301176,7.7e-05,2]
[423296601,1780042231000,-343.05090669,7.955e-05,2]
[423296605,1780042231000,-249.36870505,7.955e-05,2]
[423296604,1780042231000,-156.94909331,7.955e-05,2]
[423296588,1780042231000,-242.72491581,7.72e-05,2]
[423296661,1780042238000,-173.27763141,7.955e-05,2]
[423296644,1780042238000,-500.0,7.955e-05,2]
[423296646,1780042238000,-349.16045485,7.955e-05,2]
[423296643,1780042238000,-565.21573711,7.955e-05,2]
[423296639,1780042238000,-500.0,7.955e-05,2]
[423296641,1780042238000,-500.0,7.955e-05,2]
[423296637,1780042238000,-500.0,7.955e-05,2]
[423296635,1780042238000,-500.0,7.955e-05,2]
[423296633,1780042238000,-250.63129495,7.955e-05,2]
[423296648,1780042238000,-326.72236859,7.955e-05,2]
[423296675,1780042238000,-500.0,7.955e-05,2]
[423296676,1780042238000,-293.92146705,7.955e-05,2]
[423296680,1780042238000,-600.0,7.955e-05,2]
[423296678,1780042238000,-500.0,7.955e-05,2]
[423296686,1780042238000,-2071.03042131,8e-05,2]
[423296684,1780042238000,-5000.0,8e-05,2]
[423296667,1780042238000,-500.0,7.955e-05,2]
[423296689,1780042238000,-262.65146486,8.053e-05,2]
[423296682,1780042238000,-1124641.84010371,7.956e-05,2]
[423296671,1780042238000,-500.0,7.955e-05,2]
[423296665,1780042238000,-500.0,7.955e-05,2]
[423296669,1780042238000,-500.0,7.955e-05,2]
[423296673,1780042238000,-500.0,7.955e-05,2]
[423296691,1780042238000,-879962.9320561,8.119e-05,2]
[423296788,1780042241000,-158.54454675,8.119e-05,2]
[423296793,1780042244000,-405.18115414,8.119e-05,2]
[423296798,1780042246000,-2114.57673056,8.119e-05,2]
[423296799,1780042246000,-8282.80817372,8.119e-05,2]
[423296797,1780042246000,-2861.8884329,8.119e-05,2]
[423296887,1780042366000,829.7489768,0.00020328,120]
[423296909,1780042783000,387.0,0.00020329,120]
[423296920,1780042899000,-609.24219498,7.35e-05,2]
[423296922,1780042899000,-202.876318,7.894e-05,2]
[423296925,1780042899000,-3143.63344369,8e-05,2]
[423296921,1780042899000,-264.24804333,7.816e-05,2]
[423296923,1780042899000,-480.0,7.999e-05,2]
[423296924,1780042899000,-300.0,7.999e-05,2]
[423296927,1780042903000,-3143.63344369,8e-05,2]
[423296926,1780042903000,-1856.36655631,8e-05,2]
[423296935,1780042911000,-143.63344369,8.017e-05,2]
[423296934,1780042911000,-500.0,8.017e-05,2]
[423296932,1780042911000,-500.0,8.017e-05,2]
[423296933,1780042911000,-500.0,8.017e-05,2]
[423296928,1780042911000,-1856.36655631,8e-05,2]
[423296929,1780042911000,-500.0,8.017e-05,2]
[423296930,1780042911000,-500.0,8.017e-05,2]
[423296931,1780042911000,-500.0,8.017e-05,2]
[423296937,1780042914000,-500.0,8.017e-05,2]
[423296936,1780042914000,-356.36655631,8.017e-05,2]
[423296938,1780042914000,-500.0,8.017e-05,2]
[423296940,1780042914000,-500.0,8.017e-05,2]
[423296939,1780042914000,-500.0,8.017e-05,2]
[423296943,1780042914000,-500.0,8.017e-05,2]
[423296942,1780042914000,-500.0,8.017e-05,2]
[423296944,1780042914000,-500.0,8.017e-05,2]
[423296945,1780042914000,-631.24997351,8.017e-05,2]
[423296946,1780042914000,-12.38347018,8.017e-05,2]
[423296941,1780042914000,-500.0,8.017e-05,2]
[423296951,1780042916000,-500.0,8.017e-05,2]
[423296952,1780042916000,-640.59878638,8.017e-05,2]
[423296950,1780042916000,-500.0,8.017e-05,2]
[423296948,1780042916000,-487.61652982,8.017e-05,2]
[423296954,1780042916000,-499.99999999,8.017e-05,2]
[423296953,1780042916000,-500.0,8.017e-05,2]
[423296957,1780042916000,-371.78468381,8.018e-05,2]
[423296949,1780042916000,-500.0,8.017e-05,2]
[423296956,1780042916000,-500.0,8.018e-05,2]
[423296955,1780042916000,-500.0,8.018e-05,2]
[423296968,1780042918000,-382.87366724,8.018e-05,2]
[423296969,1780042918000,-488.91101657,8.018e-05,2]
[423296967,1780042918000,-500.0,8.018e-05,2]
[423296966,1780042918000,-500.0,8.018e-05,2]
[423296965,1780042918000,-500.0,8.018e-05,2]
[423296964,1780042918000,-500.0,8.018e-05,2]
[423296963,1780042918000,-500.0,8.018e-05,2]
[423296959,1780042918000,-128.21531619,8.018e-05,2]
[423296960,1780042918000,-500.0,8.018e-05,2]
[423296961,1780042918000,-500.0,8.018e-05,2]
[423296962,1780042918000,-500.0,8.018e-05,2]
[423296970,1780042920000,-11.08898343,8.018e-05,2]
[423296971,1780042920000,-500.0,8.018e-05,2]
[423296974,1780042920000,-3788.91101657,8.019e-05,2]
[423296973,1780042920000,-500.0,8.018e-05,2]
[423296972,1780042920000,-200.0,8.018e-05,2]
[423296975,1780042921000,-5000.0,8.019e-05,2]
[423296976,1780042922000,-300.0,8.018e-05,2]
[423296977,1780042922000,-4700.0,8.019e-05,2]
[423296979,1780042960000,-5000.0,8e-05,2]
[423296981,1780042979000,-5000.0,8e-05,2]
[423296982,1780043004000,-5000.0,8e-05,2]
[423296983,1780043022000,-5000.0,8e-05,2]
[423296984,1780043044000,-5000.0,8e-05,2]
[423296985,1780043067000,-5000.0,8e-05,2]
[423296986,1780043069000,1108.14109498,0.0002054,120]
[423296987,1780043092000,-5000.0,8e-05,2]
[423296988,1780043116000,-5000.0,8e-05,2]
[423296989,1780043132000,-5000.0,7.919e-05,2]
[423296990,1780043133000,-5000.0,7.919e-05,2]
[423296993,1780043180000,-300.0,7.918e-05,2]
[423296994,1780043180000,-4700.0,7.919e-05,2]
[423296995,1780043185000,-5000.0,7.919e-05,2]
[423296996,1780043186000,-5000.0,7.919e-05,2]
[423296997,1780043187000,-5000.0,7.919e-05,2]
[423296998,1780043197000,-294.55,7.919e-05,2]
[423297016,1780043338000,546.92,0.00020335,120]
[423297057,1780043432000,-300.0,7.999e-05,2]
[423297055,1780043432000,-2362.47522988,7.919e-05,2]
[423297056,1780043432000,-276.11551955,7.959e-05,2]
[423297058,1780043432000,-2343.7564081,8e-05,2]
[423297285,1780043440000,-151.0,8.214e-05,2]
[423297279,1780043440000,-151.0,8.214e-05,2]
[423297272,1780043440000,-914.79915659,8e-05,2]
[423297268,1780043440000,-400.02095422,8e-05,2]
[423297283,1780043440000,-162.380719,8.214e-05,2]
[423297270,1780043440000,-1341.42348109,8e-05,2]
[423297275,1780043440000,-5000.0,8e-05,2]
[423297277,1780043440000,-5000.0,8e-05,2]
[423297281,1780043440000,-151.0,8.214e-05,2]
[423297288,1780043440000,-151.0,8.214e-05,2]
[423297287,1780043440000,-151.0,8.214e-05,2]
[423297291,1780043440000,-151.0,8.214e-05,2]
[423297292,1780043440000,-151.0,8.214e-05,2]
[423297294,1780043440000,-151.0,8.214e-05,2]
[423297296,1780043440000,-151.0,8.214e-05,2]
[423297298,1780043440000,-151.0,8.214e-05,2]
[423297304,1780043440000,-68.34218005,8.214e-05,2]
[423297300,1780043440000,-151.0,8.214e-05,2]
[423297302,1780043440000,-151.0,8.214e-05,2]
[423297362,1780043441000,-151.0,8.214e-05,2]
[423297360,1780043441000,-151.0,8.214e-05,2]
[423297361,1780043441000,-151.0,8.214e-05,2]
[423297353,1780043441000,-82.65781995,8.214e-05,2]
[423297359,1780043441000,-151.0,8.214e-05,2]
[423297355,1780043441000,-151.0,8.214e-05,2]
[423297363,1780043441000,-151.0,8.214e-05,2]
[423297357,1780043441000,-151.0,8.214e-05,2]
[423297364,1780043441000,-151.0,8.214e-05,2]
[423297374,1780043441000,-343.79635664,8.218e-05,2]
[423297366,1780043441000,-570.13888595,8.217e-05,2]
[423297367,1780043441000,-500.0,8.217e-05,2]
[423297369,1780043441000,-500.0,8.218e-05,2]
[423297370,1780043441000,-608.01156707,8.218e-05,2]
[423297368,1780043441000,-237.8443096,8.217e-05,2]
[423297372,1780043441000,-12.05067391,8.218e-05,2]
[423297371,1780043441000,-500.0,8.218e-05,2]
[423297373,1780043441000,-487.94932609,8.218e-05,2]
[423297365,1780043441000,-151.0,8.214e-05,2]
[423297396,1780043443000,-627.16797348,8.218e-05,2]
[423297395,1780043443000,-500.0,8.218e-05,2]
[423297394,1780043443000,-500.0,8.218e-05,2]
[423297393,1780043443000,-500.0,8.218e-05,2]
[423297392,1780043443000,-500.0,8.218e-05,2]
[423297391,1780043443000,-438.64145538,8.218e-05,2]
[423297388,1780043443000,-60.67854462,8.218e-05,2]
[423297389,1780043443000,-439.32145538,8.218e-05,2]
[423297386,1780043443000,-141.73996844,8.218e-05,2]
[423297387,1780043443000,-358.26003156,8.218e-05,2]
[423297385,1780043443000,-500.0,8.218e-05,2]
[423297384,1780043443000,-156.20364336,8.218e-05,2]
[423297398,1780043443000,-500.0,8.219e-05,2]
[423297390,1780043443000,-61.35854462,8.218e-05,2]
[423297397,1780043443000,-1322.8106,8.219e-05,2]
[423297415,1780043443000,-500.0,8.219e-05,2]
[423297401,1780043443000,-500.0,8.219e-05,2]
[423297399,1780043443000,-504.3605417,8.219e-05,2]
[423297416,1780043443000,-500.0,8.219e-05,2]
[423297417,1780043443000,-500.0,8.219e-05,2]
[423297414,1780043443000,-514.61506236,8.219e-05,2]
[423297412,1780043443000,-500.0,8.219e-05,2]
[423297406,1780043443000,-500.0,8.219e-05,2]
[423297407,1780043443000,-500.0,8.219e-05,2]
[423297418,1780043443000,-500.0,8.219e-05,2]
[423297404,1780043443000,-500.0,8.219e-05,2]
[423297403,1780043443000,-500.0,8.219e-05,2]
[423297405,1780043443000,-539.25,8.219e-05,2]
[423297402,1780043443000,-500.0,8.219e-05,2]
[423297410,1780043443000,-500.97193915,8.219e-05,2]
[423297400,1780043443000,-500.0,8.219e-05,2]
[423297409,1780043443000,-500.0,8.219e-05,2]
[423297430,1780043444000,-500.0,8.219e-05,2]
[423297440,1780043444000,-500.0,8.219e-05,2]
[423297438,1780043444000,-500.0,8.219e-05,2]
[423297432,1780043444000,-500.0,8.219e-05,2]
[423297433,1780043444000,-500.0,8.219e-05,2]
[423297436,1780043444000,-500.0,8.219e-05,2]
[423297434,1780043444000,-500.0,8.219e-05,2]
[423297431,1780043444000,-612.75362547,8.219e-05,2]
[423297428,1780043444000,-500.0,8.219e-05,2]
[423297420,1780043444000,-439.50056679,8.219e-05,2]
[423297427,1780043444000,-500.0,8.219e-05,2]
[423297425,1780043444000,-500.0,8.219e-05,2]
[423297426,1780043444000,-500.0,8.219e-05,2]
[423297424,1780043444000,-23.90001284,8.219e-05,2]
[423297422,1780043444000,-500.0,8.219e-05,2]
[423297421,1780043444000,-500.0,8.219e-05,2]
[423297437,1780043444000,-500.0,8.219e-05,2]
[423297423,1780043444000,-476.09998716,8.219e-05,2]
[423297419,1780043444000,-500.0,8.219e-05,2]
[423297429,1780043444000,-500.0,8.219e-05,2]
[423297439,1780043444000,-500.0,8.219e-05,2]
[423297435,1780043444000,-500.0,8.219e-05,2]
[423297442,1780043444000,-500.0,8.219e-05,2]
[423297441,1780043444000,-500.0,8.219e-05,2]
[423297463,1780043444000,-56.49410635,8.219e-05,2]
[423297457,1780043444000,-332.75568984,8.219e-05,2]
[423297458,1780043444000,-167.24431016,8.219e-05,2]
[423297459,1780043444000,-500.0,8.219e-05,2]
[423297456,1780043444000,-500.0,8.219e-05,2]
[423297460,1780043444000,-500.0,8.219e-05,2]
[423297462,1780043444000,-431.12575117,8.219e-05,2]
[423297461,1780043444000,-236.15786682,8.219e-05,2]
[423297455,1780043444000,-94.40516636,8.219e-05,2]
[423297454,1780043444000,-405.59483364,8.219e-05,2]
[423297453,1780043444000,-500.0,8.219e-05,2]
[423297450,1780043444000,-500.0,8.219e-05,2]
[423297451,1780043444000,-500.0,8.219e-05,2]
[423297446,1780043444000,-500.0,8.219e-05,2]
[423297448,1780043444000,-500.0,8.219e-05,2]
[423297445,1780043444000,-33.80712016,8.219e-05,2]
[423297447,1780043444000,-500.0,8.219e-05,2]
[423297444,1780043444000,-466.19287984,8.219e-05,2]
[423297449,1780043444000,-500.0,8.219e-05,2]
[423297452,1780043444000,-500.0,8.219e-05,2]
[423297443,1780043444000,-500.0,8.219e-05,2]
[423297509,1780043446000,-500.0,8.219e-05,2]
[423297511,1780043446000,-500.0,8.219e-05,2]
[423297507,1780043446000,-500.0,8.219e-05,2]
[423297506,1780043446000,-500.0,8.219e-05,2]
[423297513,1780043446000,-500.0,8.219e-05,2]
[423297515,1780043446000,-500.0,8.219e-05,2]
[423297519,1780043446000,-500.0,8.219e-05,2]
[423297517,1780043446000,-151.5,8.219e-05,2]
[423297518,1780043446000,-212.13465636,8.219e-05,2]
[423297521,1780043446000,-500.0,8.219e-05,2]
[423297522,1780043446000,-500.0,8.219e-05,2]
[423297504,1780043446000,-231.00220069,8.219e-05,2]
[423297520,1780043446000,-602.6342266,8.219e-05,2]
[423297516,1780043446000,-151.5,8.219e-05,2]
[423297505,1780043446000,-1000.0,8.219e-05,2]
[423297494,1780043446000,-500.0,8.219e-05,2]
[423297499,1780043446000,-500.0,8.219e-05,2]
[423297501,1780043446000,-573.2,8.219e-05,2]
[423297502,1780043446000,-500.0,8.219e-05,2]
[423297500,1780043446000,-151.62656856,8.219e-05,2]
[423297496,1780043446000,-500.0,8.219e-05,2]
[423297493,1780043446000,-500.0,8.219e-05,2]
[423297498,1780043446000,-500.0,8.219e-05,2]
[423297497,1780043446000,-500.0,8.219e-05,2]
[423297495,1780043446000,-500.0,8.219e-05,2]
[423297492,1780043446000,-459.23452613,8.219e-05,2]
[423297490,1780043446000,-500.0,8.219e-05,2]
[423297491,1780043446000,-40.76547387,8.219e-05,2]
[423297489,1780043446000,-443.50589365,8.219e-05,2]
[423297523,1780043446000,-500.34678128,8.219e-05,2]
[423297503,1780043446000,-268.99779931,8.219e-05,2]
[423297525,1780043446000,-500.0,8.219e-05,2]
[423297524,1780043446000,-500.0,8.219e-05,2]
[423297526,1780043446000,-500.0,8.219e-05,2]
[423297545,1780043446000,-500.0,8.219e-05,2]
[423297548,1780043446000,-500.0,8.219e-05,2]
[423297547,1780043446000,-500.0,8.219e-05,2]
[423297549,1780043446000,-500.0,8.219e-05,2]
[423297550,1780043446000,-500.0,8.219e-05,2]
[423297551,1780043446000,-500.0,8.219e-05,2]
[423297546,1780043446000,-500.0,8.219e-05,2]
[423297552,1780043446000,-500.0,8.219e-05,2]
[423297555,1780043446000,-401.70467401,8.219e-05,2]
[423297553,1780043446000,-500.0,8.219e-05,2]
[423297556,1780043446000,-500.0,8.219e-05,2]
[423297558,1780043446000,-500.0,8.219e-05,2]
[423297559,1780043446000,-500.0,8.219e-05,2]
[423297529,1780043446000,-603.26,8.219e-05,2]
[423297554,1780043446000,-500.0,8.219e-05,2]
[423297542,1780043446000,-500.0,8.219e-05,2]
[423297557,1780043446000,-500.0,8.219e-05,2]
[423297543,1780043446000,-500.0,8.219e-05,2]
[423297530,1780043446000,-500.0,8.219e-05,2]
[423297528,1780043446000,-500.0,8.219e-05,2]
[423297527,1780043446000,-640.59302634,8.219e-05,2]
[423297531,1780043446000,-577.88,8.219e-05,2]
[423297544,1780043446000,-500.0,8.219e-05,2]
[423297533,1780043446000,-500.0,8.219e-05,2]
[423297535,1780043446000,-500.0,8.219e-05,2]
[423297532,1780043446000,-500.0,8.219e-05,2]
[423297537,1780043446000,-500.0,8.219e-05,2]
[423297540,1780043446000,-500.0,8.219e-05,2]
[423297534,1780043446000,-500.5509657,8.219e-05,2]
[423297539,1780043446000,-500.0,8.219e-05,2]
[423297538,1780043446000,-500.0,8.219e-05,2]
[423297541,1780043446000,-500.0,8.219e-05,2]
[423297536,1780043446000,-500.0,8.219e-05,2]
[423297604,1780043447000,-1049.0,8.219e-05,2]
[423297602,1780043447000,-1049.0,8.219e-05,2]
[423297607,1780043447000,-1049.0,8.219e-05,2]
[423297598,1780043447000,-1049.0,8.219e-05,2]
[423297599,1780043447000,-1049.0,8.219e-05,2]
[423297594,1780043447000,-1049.0,8.219e-05,2]
[423297600,1780043447000,-1049.0,8.219e-05,2]
[423297597,1780043447000,-1049.0,8.219e-05,2]
[423297596,1780043447000,-1049.0,8.219e-05,2]
[423297595,1780043447000,-1049.0,8.219e-05,2]
[423297591,1780043447000,-1049.0,8.219e-05,2]
[423297603,1780043447000,-640.76425743,8.219e-05,2]
[423297606,1780043447000,-1049.0,8.219e-05,2]
[423297605,1780043447000,-1049.0,8.219e-05,2]
[423297614,1780043447000,-500.0,8.219e-05,2]
[423297601,1780043447000,-1049.0,8.219e-05,2]
[423297609,1780043447000,-1049.0,8.219e-05,2]
[423297608,1780043447000,-1049.0,8.219e-05,2]
[423297611,1780043447000,-500.0,8.219e-05,2]
[423297610,1780043447000,-500.0,8.219e-05,2]
[423297613,1780043447000,-1049.0,8.219e-05,2]
[423297612,1780043447000,-1049.0,8.219e-05,2]
[423297618,1780043447000,-1049.0,8.219e-05,2]
[423297619,1780043447000,-555.43,8.219e-05,2]
[423297615,1780043447000,-1049.0,8.219e-05,2]
[423297617,1780043447000,-500.45715265,8.219e-05,2]
[423297620,1780043447000,-1051.83172276,8.219e-05,2]
[423297616,1780043447000,-500.0,8.219e-05,2]
[423297592,1780043447000,-1049.0,8.219e-05,2]
[423297621,1780043447000,-500.0,8.219e-05,2]
[423297589,1780043447000,-323.8730759,8.219e-05,2]
[423297574,1780043447000,-500.0,8.219e-05,2]
[423297593,1780043447000,-1049.0,8.219e-05,2]
[423297622,1780043447000,-605.49234066,8.219e-05,2]
[423297560,1780043447000,-500.0,8.219e-05,2]
[423297561,1780043447000,-500.0,8.219e-05,2]
[423297563,1780043447000,-500.0,8.219e-05,2]
[423297566,1780043447000,-500.0,8.219e-05,2]
[423297564,1780043447000,-500.0,8.219e-05,2]
[423297569,1780043447000,-500.0,8.219e-05,2]
[423297567,1780043447000,-500.0,8.219e-05,2]
[423297568,1780043447000,-500.0,8.219e-05,2]
[423297562,1780043447000,-500.0,8.219e-05,2]
[423297565,1780043447000,-500.0,8.219e-05,2]
[423297570,1780043447000,-500.0,8.219e-05,2]
[423297571,1780043447000,-500.0,8.219e-05,2]
[423297572,1780043447000,-500.0,8.219e-05,2]
[423297573,1780043447000,-500.0,8.219e-05,2]
[423297575,1780043447000,-500.0,8.219e-05,2]
[423297576,1780043447000,-500.0,8.219e-05,2]
[423297577,1780043447000,-500.0,8.219e-05,2]
[423297578,1780043447000,-500.0,8.219e-05,2]
[423297580,1780043447000,-500.0,8.219e-05,2]
[423297579,1780043447000,-500.0,8.219e-05,2]
[423297581,1780043447000,-500.0,8.219e-05,2]
[423297582,1780043447000,-500.0,8.219e-05,2]
[423297583,1780043447000,-500.0,8.219e-05,2]
[423297584,1780043447000,-500.0,8.219e-05,2]
[423297585,1780043447000,-500.0,8.219e-05,2]
[423297586,1780043447000,-500.0,8.219e-05,2]
[423297587,1780043447000,-500.0,8.219e-05,2]
[423297588,1780043447000,-500.0,8.219e-05,2]
[423297590,1780043447000,-1049.0,8.219e-05,2]
[423297623,1780043447000,-500.0,8.219e-05,2]
[423297660,1780043447000,-500.0,8.219e-05,2]
[423297625,1780043447000,-500.0,8.219e-05,2]
[423297661,1780043447000,-500.0,8.219e-05,2]
[423297664,1780043447000,-500.0,8.219e-05,2]
[423297662,1780043447000,-500.0,8.219e-05,2]
[423297673,1780043447000,-500.0,8.219e-05,2]
[423297671,1780043447000,-500.0,8.219e-05,2]
[423297663,1780043447000,-500.0,8.219e-05,2]
[423297666,1780043447000,-626.95,8.219e-05,2]
[423297667,1780043447000,-500.0,8.219e-05,2]
[423297668,1780043447000,-500.0,8.219e-05,2]
[423297674,1780043447000,-500.0,8.219e-05,2]
[423297665,1780043447000,-500.0,8.219e-05,2]
[423297669,1780043447000,-500.0,8.219e-05,2]
[423297670,1780043447000,-500.0,8.219e-05,2]
[423297672,1780043447000,-500.0,8.219e-05,2]
[423297675,1780043447000,-500.0,8.219e-05,2]
[423297677,1780043447000,-500.79255613,8.219e-05,2]
[423297687,1780043447000,-500.0,8.219e-05,2]
[423297676,1780043447000,-500.0,8.219e-05,2]
[423297678,1780043447000,-500.0,8.219e-05,2]
[423297681,1780043447000,-500.0,8.219e-05,2]
[423297682,1780043447000,-500.0,8.219e-05,2]
[423297680,1780043447000,-500.0,8.219e-05,2]
[423297688,1780043447000,-500.0,8.219e-05,2]
[423297626,1780043447000,-500.0,8.219e-05,2]
[423297686,1780043447000,-500.0,8.219e-05,2]
[423297684,1780043447000,-500.0,8.219e-05,2]
[423297683,1780043447000,-500.0,8.219e-05,2]
[423297685,1780043447000,-500.0,8.219e-05,2]
[423297689,1780043447000,-224.99052437,8.219e-05,2]
[423297659,1780043447000,-500.0,8.219e-05,2]
[423297656,1780043447000,-500.0,8.219e-05,2]
[423297679,1780043447000,-300.35426071,8.219e-05,2]
[423297654,1780043447000,-500.0,8.219e-05,2]
[423297657,1780043447000,-500.0,8.219e-05,2]
[423297633,1780043447000,-500.0,8.219e-05,2]
[423297629,1780043447000,-500.0,8.219e-05,2]
[423297632,1780043447000,-500.0,8.219e-05,2]
[423297628,1780043447000,-500.0,8.219e-05,2]
[423297624,1780043447000,-500.0,8.219e-05,2]
[423297630,1780043447000,-500.0,8.219e-05,2]
[423297631,1780043447000,-500.0,8.219e-05,2]
[423297634,1780043447000,-500.0,8.219e-05,2]
[423297635,1780043447000,-500.0,8.219e-05,2]
[423297638,1780043447000,-500.0,8.219e-05,2]
[423297636,1780043447000,-500.0,8.219e-05,2]
[423297637,1780043447000,-500.0,8.219e-05,2]
[423297639,1780043447000,-500.0,8.219e-05,2]
[423297640,1780043447000,-500.0,8.219e-05,2]
[423297627,1780043447000,-154.54554856,8.219e-05,2]
[423297641,1780043447000,-500.0,8.219e-05,2]
[423297643,1780043447000,-500.0,8.219e-05,2]
[423297653,1780043447000,-500.0,8.219e-05,2]
[423297651,1780043447000,-500.0,8.219e-05,2]
[423297652,1780043447000,-639.8865092,8.219e-05,2]
[423297648,1780043447000,-500.0,8.219e-05,2]
[423297650,1780043447000,-500.0,8.219e-05,2]
[423297658,1780043447000,-500.0,8.219e-05,2]
[423297647,1780043447000,-212.65446229,8.219e-05,2]
[423297645,1780043447000,-500.0,8.219e-05,2]
[423297649,1780043447000,-500.0,8.219e-05,2]
[423297646,1780043447000,-500.0,8.219e-05,2]
[423297655,1780043447000,-500.0,8.219e-05,2]
[423297644,1780043447000,-500.0,8.219e-05,2]
[423297642,1780043447000,-500.0,8.219e-05,2]
[423297727,1780043448000,-586.02,8.219e-05,2]
[423297717,1780043448000,-500.0,8.219e-05,2]
[423297720,1780043448000,-500.0,8.219e-05,2]
[423297719,1780043448000,-500.0,8.219e-05,2]
[423297725,1780043448000,-500.0,8.219e-05,2]
[423297728,1780043448000,-500.0,8.219e-05,2]
[423297735,1780043448000,-5466.17,8.219e-05,2]